Cogmind - Beta 12 @@@ ROGUE MODE // 2023.12.28 @ 14:38:35 Player: Heclapar Result: Self-destructed Performance ------------- Evolutions (2) 1000 Regions Visited (5) 1000 Robots Destroyed (16) 80 Value Destroyed (516) 516 Prototype IDs (1) 20 Alien Tech Used (0) 0 Bonus (0) 0 TOTAL SCORE: 2616 Bonus ------- None Cogmind --------- Core Integrity 255/550 Matter 180/300 Energy 40/100 System Corruption 0% Temperature Cool (0) Movement Walking (260) Ox2 Location -8/Materials Parts ------- > --- POWER (1) -------- (None) > --- PROPULSION (4) --- Aluminum Leg > --- UTILITY (4) ------ Heat Sink Large Storage Unit Targeting Computer ECM Suite > --- WEAPON (2) ------- Heavy EM Pulse Gun Small Laser > --- INVENTORY (15) --- Ion Engine Light Treads Light Treads High-capacity Storage Unit Bomb Drone Bay (16/16) Grenade Launcher Peak State ------------ > --- POWER ------------ Ion Engine > --- PROPULSION ------- Wheel Wheel > --- UTILITY ---------- Heat Sink Large Storage Unit Bomb Drone Bay > --- WEAPON ----------- Particle Gun Heavy Assault Rifle > --- INVENTORY -------- Light Nuclear Core Light Treads Light Treads Aluminum Leg Aluminum Leg Aluminum Leg High-capacity Storage Unit Targeting Computer ECM Suite Small Laser Grenade Launcher [Rating: 24] Favorites ----------- Power Ion Engine Engine Ion Engine Power Core Light Nuclear Core Propulsion Wheel Leg Aluminum Leg Wheel Wheel Utility Large Storage Unit Device Heat Sink Storage Large Storage Unit Processor Targeting Computer Protection Light Armor Plating Weapon Medium Laser Energy Gun Medium Laser Ballistic Gun Heavy Assault Rifle Launcher Grenade Launcher Build | -11 -10 -10 -10 -9 -8 ------- Run | Jun Mat Min Exi Min Mat Slots Evolved 4 | . . . . . 4 Power . | . . . . . . Propulsion 2 | . . . . . 2 Utility 2 | . . . . . 2 Weapon . | . . . . . . Parts Attached 28 | . 5 7 . 5 11 Power 2 | . . . . 1 1 Engine 1 | . . . . 1 . Core 1 | . . . . . 1 Reactor . | . . . . . . Propulsion 7 | . 1 2 . 1 3 Treads . | . . . . . . Leg 4 | . 1 . . . 3 Wheel 3 | . . 2 . 1 . Hover . | . . . . . . Flight . | . . . . . . Utility 9 | . 2 3 . 1 3 Device 5 | . . 2 . 1 2 Storage 1 | . 1 . . . . Processor 2 | . 1 . . . 1 Hackware . | . . . . . . Protection 1 | . . 1 . . . Artifact . | . . . . . . Weapon 10 | . 2 2 . 2 4 Energy Gun 7 | . 2 2 . 1 2 Energy Cannon . | . . . . . . Ballistic Gun 2 | . . . . 1 1 Ballistic Cannon . | . . . . . . Launcher 1 | . . . . . 1 Special Weapon . | . . . . . . Impact Weapon . | . . . . . . Slashing Weapon . | . . . . . . Piercing Weapon . | . . . . . . Special Melee Weapon . | . . . . . . Unidentified Prototypes 1 | . . . . . 1 Parts Lost 14 | . . 4 . 5 5 Power 2 | . . . . 1 1 Propulsion 5 | . . 1 . 1 3 Utility 2 | . . 1 . 1 . Weapon 5 | . . 2 . 2 1 Highest Loss Streak 4 | . . 4 . 3 4 To Critical Strikes . | . . . . . . Average Slot Usage (%) 96 | . 98 98 100 98 81 Engine 12 | . 14 14 14 14 . Leg 11 | . 27 10 . . 12 Wheel 15 | . . 17 28 26 7 Device 5 | . . 7 . . 18 Storage 15 | . 26 14 14 14 9 Processor 1 | . 1 1 . . 9 Protection 5 | . . 3 14 12 . Energy Gun 24 | . 28 27 28 14 10 Ballistic Gun 2 | . . . . 13 6 Naked Turns . | . . . . . . Heaviest Build 34 | 14 34 31 31 32 34 Greatest Support 30 | 20 20 20 20 20 30 Greatest Overweight (x) 3 | . 3 1 1 3 3 Average Overweight (x) . | . . 1 1 1 1 Largest Inventory Capacity 15 | . 15 15 15 15 15 Average Capacity 14 | . 14 15 15 15 15 Most Carried 15 | . 7 15 15 15 13 Average Carried 11 | . 6 10 14 14 9 Final Capacity 15 | 8 15 15 15 15 15 Final Carried 15 | 6 7 15 14 13 7 Class Distribution -------------------- 89% | Mutant 10% | Scavenger-Mutant Dominant Class ---------------- Mutant | -10/Materials Mutant | -10/Mines Mutant | -10/Exiles Mutant | -9/Mines Scavenger-Mutant | -8/Materials Resources | -11 -10 -10 -10 -9 -8 ----------- Run | Jun Mat Min Exi Min Mat Matter Collected 363 | 200 40 62 . 51 10 Remotely . | . . . . . . Salvage Created 761 | . 292 224 . 175 70 Parts 41 | . 16 13 . 8 4 Haulers Intercepted . | . . . . . . Recyclers Shooed 1 | . . 1 . . . Parts Field Recycled . | . . . . . . Retrieved Matter . | . . . . . . Parts Self-Destructed . | . . . . . . Prevented . | . . . . . . Kills | -11 -10 -10 -10 -9 -8 ------- Run | Jun Mat Min Exi Min Mat Combat Hostiles Destroyed 15 | . 4 4 . 6 1 Guns 13 | . 4 3 . 6 . AOE 1 | . . . . . 1 Classes Destroyed 7 | . 3 2 . 1 1 Builder 1 | . . . . . 1 Tunneler 1 | . . 1 . . . Recycler 1 | . 1 . . . . Watcher 1 | . 1 . . . . Grunt 10 | . 4 2 . 3 1 Sentry 2 | . . 2 . . . Assembled 3 | . . . . 3 . Best Kill Streak 3 | . 3 2 . 3 1 Combat Bots Only 3 | . 2 2 . 3 1 Max Kills in Single Turn 1 | . 1 1 . 1 1 Gunslinging . | . . . . . . Exploded 1 | . . . . . 1 Melee . | . . . . . . Uniques/NPCs Destroyed . | . . . . . . Combat | -11 -10 -10 -10 -9 -8 -------- Run | Jun Mat Min Exi Min Mat Damage Taken 1658 | . 166 475 . 400 617 Core 541 | . 37 156 . 53 295 Absorbed by Shields . | . . . . . . Core Remaining (%) 50 | 100 . . . 1 . Volleys Fired 67 | . 18 20 . 17 12 Largest 2 | . 2 2 . 2 2 Hottest 100 | . 100 100 . 88 88 Shots Fired 129 | . 36 37 . 33 23 Gun 128 | . 36 37 . 33 22 Cannon . | . . . . . . Launcher 1 | . . . . . 1 Special . | . . . . . . Kinetic 17 | . . . . 14 3 Thermal 91 | . 29 35 . 16 11 Explosive 1 | . . . . . 1 Electromagnetic 20 | . 7 2 . 3 8 Robot Hit Streak 8 | . 8 7 . 5 3 Robot Miss Streak 3 | . 3 1 . 3 1 Penetration Max . | . . . . . . Secondary Targets 3 | . . 1 . 2 . Max Gunslinging Chain 1 | . . 1 . 1 . Shots Hit Robots 85 | . 22 28 . 21 14 Core Hits 39 | . 12 7 . 12 8 Critical Kills . | . . . . . . Critical Parts Destroyed . | . . . . . . Critical Strikes 11 | . 8 3 . . . Burn 9 | . 7 2 . . . Corrupt 2 | . 1 1 . . . Melee Attacks . | . . . . . . Impact . | . . . . . . Slashing . | . . . . . . Piercing . | . . . . . . Sneak Attacks . | . . . . . . Combat Hostiles . | . . . . . . Follow-up Attacks . | . . . . . . Damage Inflicted 1210 | . 279 358 . 324 249 Guns 1131 | . 279 353 . 315 184 Cannons . | . . . . . . Explosions 65 | . . . . . 65 Melee . | . . . . . . Ramming 14 | . . 5 . 9 . Kinetic 193 | . . . . 152 41 Thermal 722 | . 211 331 . 126 54 Explosive 65 | . . . . . 65 Electromagnetic 216 | . 68 22 . 37 89 Impact . | . . . . . . Slashing . | . . . . . . Piercing . | . . . . . . Highest Corruption . | . . . . . . Average Corruption . | . . . . . . Corruption Purged . | . . . . . . Corruption Blocked . | . . . . . . Overload Shots . | . . . . . . Overflow Damage . | . . . . . . Projectiles . | . . . . . . Explosions . | . . . . . . Melee . | . . . . . . Knockbacks . | . . . . . . Impact . | . . . . . . Kinetic . | . . . . . . Secondary . | . . . . . . Self-Inflicted Damage 4 | . . . . 4 . Shots . | . . . . . . Rammed 1 | . . . . 1 . Targets Rammed 3 | . . 2 . 1 . Kicked 2 | . . 2 . . . Crushed . | . . . . . . Highest Temperature 273 | . 273 217 . 222 . Average Temperature 102 | . 98 117 . 91 . Received Heat Transfer 563 | . 93 219 . 224 27 Siege Activations . | . . . . . . Robots Corrupted . | . . . . . . Combat Hostiles . | . . . . . . Parts Fried . | . . . . . . Impact Corruptions . | . . . . . . Robots Melted 1 | . . 1 . . . Combat Hostiles 1 | . . 1 . . . Parts Melted 5 | . 1 4 . . . Heat Transferred 2645 | . 1147 1087 . 286 125 Parts Sabotaged . | . . . . . . Parts Stolen . | . . . . . . Parts Stripped . | . . . . . . Power Chain Reactions . | . . . . . . Missiles Intercepted . | . . . . . . Alert | -11 -10 -10 -10 -9 -8 ------- Run | Jun Mat Min Exi Min Mat Peak Influence 189 | . 189 70 . 70 72 Initial 19 | . . . . . 19 Average 49 | . 88 25 . 64 45 Maximum Alert Level . | . . . . . . Low Security (%) 100 | . 100 100 . 100 100 Level 1 . | . . . . . . Level 2 . | . . . . . . Level 3 . | . . . . . . Level 4 . | . . . . . . Level 5 . | . . . . . . High Security . | . . . . . . Max Security . | . . . . . . Squads Dispatched 3 | . 1 . . . 2 Investigation . | . . . . . . Extermination . | . . . . . . Reinforcement 3 | . 1 . . . 2 Assault . | . . . . . . Garrison . | . . . . . . Intercept . | . . . . . . Searches Triggered . | . . . . . . Construction Impeded . | . . . . . . Haulers Reinforced . | . . . . . . Active Scanning Responses . | . . . . . . Cargo Convoy Interrupts . | . . . . . . Stealth | -11 -10 -10 -10 -9 -8 --------- Run | Jun Mat Min Exi Min Mat Distress Signals 1 | . 1 . . . . Communications Jammed . | . . . . . . Distress Signals . | . . . . . . Times Spotted 34 | . 13 4 . 11 6 Peak Tracking Total 6 | . 5 2 . 6 3 Tactical Retreats 3 | . 1 . . 1 1 Traps | -11 -10 -10 -10 -9 -8 ------- Run | Jun Mat Min Exi Min Mat Traps Triggered 1 | . 1 . . . . Indirectly . | . . . . . . Trap Hack Attempts . | . . . . . . Triggered . | . . . . . . Disarmed . | . . . . . . Reprogrammed . | . . . . . . Reused . | . . . . . . Traps Extracted . | . . . . . . Installed . | . . . . . . Triggered . | . . . . . . Machines | -11 -10 -10 -10 -9 -8 ---------- Run | Jun Mat Min Exi Min Mat Machines Disabled . | . . . . . . Max in Single Turn . | . . . . . . Machines Repaired . | . . . . . . Machines Sabotaged . | . . . . . . Overloaded Fab Kills . | . . . . . . Hacking | -11 -10 -10 -10 -9 -8 --------- Run | Jun Mat Min Exi Min Mat Machines Accessed 1 | . . 1 . . . Terminals . | . . . . . . Fabricators . | . . . . . . Repair Stations . | . . . . . . Recycling Units . | . . . . . . Scanalyzers . | . . . . . . Garrison Access . | . . . . . . Total Hacks 1 | . . 1 . . . Successful 1 | . . 1 . . . Failed . | . . . . . . Catastrophic . | . . . . . . Database Lockouts . | . . . . . . Manual . | . . . . . . Terminals . | . . . . . . Fabricators . | . . . . . . Repair Stations . | . . . . . . Recycling Units . | . . . . . . Scanalyzers . | . . . . . . Garrison Access . | . . . . . . Terminal Hacks 1 | . . 1 . . . Open Door 1 | . . 1 . . . Fabricator Hacks . | . . . . . . Repair Station Hacks . | . . . . . . Recycling Unit Hacks . | . . . . . . Scanalyzer . | . . . . . . Garrison Access Hacks . | . . . . . . Unauthorized Hacks . | . . . . . . Terminals . | . . . . . . Fabricators . | . . . . . . Repair Stations . | . . . . . . Recycling Units . | . . . . . . Scanalyzers . | . . . . . . Garrison Access . | . . . . . . Data Cores Recovered . | . . . . . . Used . | . . . . . . Hacking Detections . | . . . . . . Full Trace Events . | . . . . . . Feedback Events . | . . . . . . Feedback Blocked . | . . . . . . Robot Schematics Acquired . | . . . . . . Robots Built . | . . . . . . Authchips . | . . . . . . Time . | . . . . . . Total Robot Build Rating . | . . . . . . Part Schematics Acquired . | . . . . . . Parts Built . | . . . . . . Authchips . | . . . . . . Time . | . . . . . . Total Part Build Rating . | . . . . . . Parts Repaired . | . . . . . . Time . | . . . . . . Parts Recycled . | . . . . . . Recycled Matter . | . . . . . . Retrieved Matter . | . . . . . . Retrieved Components . | . . . . . . Parts Scanalyzed . | . . . . . . Part Schematics Acquired . | . . . . . . Parts Damaged . | . . . . . . Bothacking | -11 -10 -10 -10 -9 -8 ------------ Run | Jun Mat Min Exi Min Mat Used RIF Installer . | . . . . . . Robots Hacked . | . . . . . . Non-combat . | . . . . . . Combat . | . . . . . . Robot Hacks Applied . | . . . . . . Relay Couplers Released . | . . . . . . Fabnet Peak Effective % . | . . . . . . Robots Rewired . | . . . . . . Allies Hacked . | . . . . . . Hacks Repelled . | . . . . . . Allies | -11 -10 -10 -10 -9 -8 -------- Run | Jun Mat Min Exi Min Mat Total Allies . | . . . . . . Largest Group . | . . . . . . Highest-Rated Group . | . . . . . . Highest-Rated Ally . | . . . . . . Total Orders . | . . . . . . Ally Attacks . | . . . . . . Total Damage . | . . . . . . Kills . | . . . . . . Allies Corrupted . | . . . . . . Allies Melted . | . . . . . . Intel | -11 -10 -10 -10 -9 -8 ------- Run | Jun Mat Min Exi Min Mat Robot Analysis Total . | . . . . . . Derelict Logs Recovered 1 | . . 1 . . . Drone Launches . | . . . . . . Drone Recoveries . | . . . . . . Exploration | -11 -10 -10 -10 -9 -8 ------------- Run | Jun Mat Min Exi Min Mat Turns Passed 2015 | . 409 791 324 271 220 Spaces Moved 1434 | 1 175 593 341 215 109 Core . | . . . . . . Treads . | . . . . . . Legs 319 | 1 175 122 . . 21 Wheels 1115 | . . 471 341 215 88 Hover . | . . . . . . Flight . | . . . . . . Fastest Speed 95 | 120 120 95 95 95 95 Average Speed 115 | 120 184 114 95 95 114 Slowest Speed 330 | 120 330 190 95 125 190 Overloaded Moves . | . . . . . . Propulsion Burnouts . | . . . . . . Robots Hopped . | . . . . . . Cave-ins Triggered . | . . . . . . Exploration Rate (%) 42 | 2 29 91 85 42 8 Regions Visited 5 Branch Regions 3 Pre-discovered Areas 1 | . . 1 . . . Known Exits Taken . | . . . . . . Unknown Exits Taken 5 | 1 1 1 1 1 . Scrap Searched 1 | . . 1 . . . Spaces Dug . | . . . . . . Terrain Destroyed 8 | . . . . . 8 Melee . | . . . . . . Projectile . | . . . . . . AOE 8 | . . . . . 8 Terrain Rammed . | . . . . . . Walls Destroyed . | . . . . . . Machines Disabled . | . . . . . . Actions | -11 -10 -10 -10 -9 -8 --------- Run | Jun Mat Min Exi Min Mat Total 1658 | . 224 666 341 247 180 Wait 107 | . 25 31 . 6 45 Move 1429 | . 174 592 340 214 109 Hop . | . . . . . . Pick Up 17 | . 1 11 . 4 1 Fast Attach 6 | . 4 2 . . . Attach 18 | . . 5 . 5 8 Detach 2 | . . 1 . . 1 Swap 4 | . 1 . . . 3 Drop 5 | . 1 2 1 . 1 Fire 67 | . 18 20 . 17 12 Melee . | . . . . . . Ram 1 | . . . . 1 . Kick 2 | . . 2 . . . Crush . | . . . . . . Escape Stasis . | . . . . . . Rewire . | . . . . . . Trap . | . . . . . . Miscellaneous . | . . . . . . Route ------- -11/Junkyard -10/Materials -10/Mines (discovered 3 exits: [*Mat x2] / [*Exi]) -10/Exiles -9/Mines -8/Materials History --------- Turn | Location | Event 1 | -11/Junkyard | Discovered new exit (range 0) 1 | -11/Junkyard | Entered Materials 317 | -10/Materials | Build established: Mutant 389 | -10/Materials | Discovered new exit (range 12) 410 | -10/Materials | Entered Mines 653 | -10/Mines | Discovered new exit (range 5) 706 | -10/Mines | Core integrity fell below 50% 742 | -10/Mines | Lost 4 parts (1n1u2w) 957 | -10/Mines | Found the Drone Emporium 960 | -10/Mines | Found Prototype Device 1010 | -10/Mines | YI-UF0 nonchalantly dropped a Grenade Launcher on the ground 1183 | -10/Mines | Learned location of Storage (-9) 1185 | -10/Mines | Discovered new exit (range 4) 1196 | -10/Mines | Deemed a non-threat by the Exiles lab entrance 1197 | -10/Mines | Discovered new exit (range 5) 1201 | -10/Mines | Entered Exiles 1201 | -10/Exiles | Found Exiles lab abandoned 1515 | -10/Exiles | Discovered new exit (range 10) 1525 | -10/Exiles | Entered Mines 1528 | -9/Mines | Core integrity fell below 20% 1566 | -9/Mines | Lost 3 parts (1p1n1w) 1701 | -9/Mines | Assembled infested the area 1706 | -9/Mines | Assisted by a Guerilla fighting off Assembled 1793 | -9/Mines | Discovered new exit (range 3) 1796 | -9/Mines | Entered Materials 1796 | -8/Materials | Evolved 4 slots: Propulsion x2, Utility x2 1796 | -8/Materials | Identified Bomb Drone Bay 2012 | -8/Materials | Core integrity fell below 50% 2016 | -8/Materials | Self-destructed Last Messages --------------- 01983_ Penetrated by Slug. 01983_ Knocked back. 01983_ R-06 Scavenger collects Hvy. Assault Rifle. 01985_ H-61 Shepherd misfires. 01985_ K-01 Serf collects debris. 01987_ Aluminum Leg destroyed. 01989_ Acquired 7 matter. 01989_ Knocked back. 01991_ M-13 Machinist repairs H-61 Shepherd. 01991_ R-06 Scavenger collects Structural Scanner. 01996_ Aluminum Leg destroyed. 01996_ Critical hit (Blast). 02002_ K-01 Serf collects debris. 02003_ M-13 Machinist repairs H-61 Shepherd. 02006_ R-06 Scavenger collects Wheel. 02006_ Knocked back. 02007_ Acquired 3 matter. 02007_ K-01 Serf collects debris. 02010_ R-06 Scavenger collects Terrain Scanner. 02011_ Penetrated by Slug. Map ----- +----------------------------------------------------+ | ??????????????????????????????????? | | ??????????????????????????????????? | | ??????????????????????#####???????? | | ??????????????????????# #???????? | | ??????????????????????# #???????? | | ??????????????????????# ######### | | ???????????????######## ## # | | ???????????????# ## ## # | | ???????????????# ## ## # | | ???????????????# ## ## [ # | | ???????????????# # # # | | ???????????????# # T # # | | ???????????????# + "" + # | | ???????????????# =# # # | | ???????????????# # # # | | ???????????????# ## ## # | | ???????????????# ## ## # | | ???????????????# ## ## # | | ???????????????# ## ## # | | ???????????????######## ######### | | ??????????????????????# ;???????? | | ??????????????????????# ######### | | ?????????????????????## ; = # | | ?????????????????????## % ; # | | ?????????????????????## %%# """ # | | ?????????????????????## %@# """ # | | ?????????????????????## % #%""" # | | ?????????????????????##% ; # | | ??????????????????????# ; """ # | | ??????????????????????#% # """ # | | ??????????????????????# # """ ! # | | ??????????????????????# ; # | | ??????????????????????# # ? | | ??????????????????????# r########? | | ??????????????????????+ H%#???????? | | ????????????????????? # m #???????? | | ????????????????????? ## ;#???????? | | ???????????????????? ??# ;????????? | | ???????????????????? ??# ;????????? | | ???????????????????#???# #????????? | | ???????????????????????#g?????????? | | ???????????????????????? ?????????? | | ???????????????????????? ?????????? | | ???????????????????????? ?????????? | | ??????????????????????????????????? | | ??????????????????????????????????? | | ??????????????????????????????????? | | ??????????????????????????????????? | | ??????????????????????????????????? | | ??????????????????????????????????? | +----------------------------------------------------+ Best States ------------- Heat Dissipation 41 Energy Generation 14 Energy Capacity 250 Matter Stores 300 Matter Capacity 300 Sight Range 18 Terrain Scan Density 10 ECM Strength 1 Armor Coverage 150 Evasion (%) 55 Targeting Accuracy 5 Item Schematics ----------------- None Robot Schematics ------------------ None Fabricated ------------ Nothing Alien Tech Used ----------------- None Achievements -------------- None Challenges ------------ None Game ------ Seed StealthFrostStripper Manual? 0 Play Time 00:18:03 Cumulative 67.7 hours Start 2023.12.28 @ 14:22:27 End 2023.12.28 @ 14:38:35 Sessions 1 Manual Loads 0 Difficulty Rogue Special Mode None Game No. 79 Rogue 79 Adventurer 0 Explorer 0 Win Type - Total 0 Types 0/0/0/0/0/0/0/0/0 Lore% 41 Gallery% 55 Achievement% 49 Wizard Run 0 Options --------- ASCII 0 Keyboard 0 Movement Mouse Keybinds 0 Fullscreen 1 Font 18/TerminusBold Map View 76x50 Tactical HUD 1 Map Filters NONE Filters NONE Steam 1 RUN: 33dbf938-8e31-4d2c-b159-c48cd51ab8c9